[Event "*** Titled Tuesday Blitz"]
[Site "Chess.com"]
[Date "2019.02.05"]
[Round "4"]
[White "vgyogi"]
[Black "MateusViageiro"]
[Result "1/2-1/2"]
[WhiteElo "2163"]
[BlackElo "2183"]
[TimeControl "180+2"]
[EndTime "13:52:54 PST"]
[Termination "Game drawn by agreement"]

1. d4 {[%clk 0:03:01.5]} 1... Nf6 {[%clk 0:03:00.8]} 2. Bg5 {[%clk 0:03:00.4]}
2... Ne4 {[%clk 0:03:00.3]} 3. Bf4 {[%clk 0:02:59.6]} 3... d5 {[%clk 0:03:01]}
4. f3 {[%clk 0:03:01.1]} 4... Nf6 {[%clk 0:03:01.6]} 5. Nc3 {[%clk 0:03:01.6]}
5... e6 {[%clk 0:03:01.7]} 6. e4 {[%clk 0:03:02.4]} 6... Bb4 {[%clk 0:03:02.5]}
7. a3 {[%clk 0:02:53.9]} 7... Bxc3+ {[%clk 0:02:59.7]} 8. bxc3 {[%clk
0:02:54.4]} 8... dxe4 {[%clk 0:03:00.7]} 9. Bc4 {[%clk 0:02:49.9]} 9... O-O
{[%clk 0:02:58.7]} 10. Qe2 {[%clk 0:02:50.2]} 10... exf3 {[%clk 0:02:58.7]} 11.
Nxf3 {[%clk 0:02:51.2]} 11... Nd5 {[%clk 0:02:58.8]} 12. Bd2 {[%clk 0:02:50]}
12... c5 {[%clk 0:02:59.6]} 13. O-O {[%clk 0:02:49.8]} 13... Nc6 {[%clk
0:02:59.6]} 14. Bd3 {[%clk 0:02:43.9]} 14... f5 {[%clk 0:02:39]} 15. Kh1 {[%clk
0:02:23.5]} 15... g6 {[%clk 0:02:11]} 16. Ne5 {[%clk 0:02:19.2]} 16... cxd4
{[%clk 0:02:08.7]} 17. Nxc6 {[%clk 0:02:18.2]} 17... bxc6 {[%clk 0:02:07.7]} 18.
cxd4 {[%clk 0:02:19.1]} 18... Qc7 {[%clk 0:01:57.4]} 19. c4 {[%clk 0:02:18.2]}
19... Nf6 {[%clk 0:01:54.8]} 20. Bf4 {[%clk 0:02:18.5]} 20... Qd7 {[%clk
0:01:50.7]} 21. Rad1 {[%clk 0:02:12.1]} 21... a5 {[%clk 0:01:40.6]} 22. Be5
{[%clk 0:02:09.2]} 22... Ra7 {[%clk 0:01:33.7]} 23. h3 {[%clk 0:02:04]} 23...
Rb7 {[%clk 0:01:29.3]} 24. Qd2 {[%clk 0:02:01.6]} 24... Qd8 {[%clk 0:01:18.4]}
25. Qf4 {[%clk 0:01:38.1]} 25... Rb3 {[%clk 0:01:14]} 26. Bc2 {[%clk 0:01:26.8]}
26... Nh5 {[%clk 0:01:08.3]} 27. Qc1 {[%clk 0:01:06.7]} 27... Ng3+ {[%clk
0:00:58.5]} 28. Bxg3 {[%clk 0:01:01.8]} 28... Rxg3 {[%clk 0:00:58.1]} 29. a4
{[%clk 0:01:02.4]} 29... Qh4 {[%clk 0:00:55.6]} 30. Qd2 {[%clk 0:00:57.6]} 30...
f4 {[%clk 0:00:53.9]} 31. Be4 {[%clk 0:00:54]} 31... Ba6 {[%clk 0:00:29.7]} 32.
Qe2 {[%clk 0:00:38.2]} 32... Re3 {[%clk 0:00:28.3]} 33. Qc2 {[%clk 0:00:34.2]}
33... Bxc4 {[%clk 0:00:27.6]} 34. Qxc4 {[%clk 0:00:25.8]} 34... Rxe4 {[%clk
0:00:28.6]} 35. Qxc6 {[%clk 0:00:25.8]} 35... Re3 {[%clk 0:00:26.7]} 36. Rf3
{[%clk 0:00:26.6]} 36... Re2 {[%clk 0:00:22.2]} 37. d5 {[%clk 0:00:24.1]} 37...
exd5 {[%clk 0:00:21.6]} 38. Qxd5+ {[%clk 0:00:24.4]} 38... Rf7 {[%clk
0:00:21.6]} 39. Qd8+ {[%clk 0:00:24]} 39... Qxd8 {[%clk 0:00:21.6]} 40. Rxd8+
{[%clk 0:00:24.8]} 40... Kg7 {[%clk 0:00:21.4]} 41. Rd5 {[%clk 0:00:26.6]} 41...
Re3 {[%clk 0:00:19.3]} 42. Rxa5 {[%clk 0:00:25.8]} 42... Rxf3 {[%clk 0:00:19.5]}
43. gxf3 {[%clk 0:00:26.9]} 43... Re7 {[%clk 0:00:20.4]} 44. Ra8 {[%clk
0:00:26.3]} 44... Re2 {[%clk 0:00:21.1]} 45. a5 {[%clk 0:00:25.7]} 45... Rf2
{[%clk 0:00:20.8]} 46. a6 {[%clk 0:00:24.9]} 46... Rxf3 {[%clk 0:00:21.7]} 47.
Kg2 {[%clk 0:00:23.4]} 47... Ra3 {[%clk 0:00:22.4]} 48. Ra7+ {[%clk 0:00:20.4]}
48... Kh6 {[%clk 0:00:22.7]} 49. Rf7 {[%clk 0:00:20.1]} 49... Rxa6 {[%clk
0:00:21]} 50. Rxf4 {[%clk 0:00:21.6]} 50... Kg5 {[%clk 0:00:21.8]} 51. Rb4
{[%clk 0:00:22.2]} 51... h5 {[%clk 0:00:22.8]} 52. h4+ {[%clk 0:00:21.4]} 52...
Kf5 {[%clk 0:00:23.8]} 53. Kg3 {[%clk 0:00:21.2]} 53... Re6 {[%clk 0:00:24.5]}
54. Rb5+ {[%clk 0:00:20.4]} 54... Re5 {[%clk 0:00:25.6]} 55. Rb4 {[%clk
0:00:21.2]} 55... Re3+ {[%clk 0:00:26.1]} 56. Kg2 {[%clk 0:00:20.4]} 56... Re4
{[%clk 0:00:25.5]} 57. Rb5+ {[%clk 0:00:21]} 57... Kf4 {[%clk 0:00:25.8]} 58.
Rb6 {[%clk 0:00:22]} 58... Kf5 {[%clk 0:00:21.8]} 59. Rb5+ {[%clk 0:00:22.1]}
59... Re5 {[%clk 0:00:21.8]} 60. Rb4 {[%clk 0:00:22.1]} 60... Rc5 {[%clk
0:00:21.9]} 61. Kg3 {[%clk 0:00:21.7]} 61... Rc3+ {[%clk 0:00:22.7]} 62. Kg2
{[%clk 0:00:22.3]} 62... Re3 {[%clk 0:00:23.6]} 63. Ra4 {[%clk 0:00:21.3]} 63...
Re4 {[%clk 0:00:24]} 64. Ra5+ {[%clk 0:00:22]} 64... Re5 {[%clk 0:00:24.7]} 65.
Ra4 {[%clk 0:00:22.2]} 65... Rd5 {[%clk 0:00:25.3]} 66. Kg3 {[%clk 0:00:22.2]}
66... Ke5 {[%clk 0:00:26.1]} 67. Ra6 {[%clk 0:00:20.9]} 67... Rd3+ {[%clk
0:00:25.9]} 68. Kg2 {[%clk 0:00:20.8]} 68... Kf5 {[%clk 0:00:26.4]} 69. Ra5+
{[%clk 0:00:20.2]} 69... Kf4 {[%clk 0:00:26.5]} 70. Ra4+ {[%clk 0:00:17.8]}
70... Ke3 {[%clk 0:00:27.4]} 71. Ra6 {[%clk 0:00:17.4]} 71... Rd4 {[%clk
0:00:27.6]} 72. Rxg6 {[%clk 0:00:18]} 72... Rxh4 {[%clk 0:00:28.3]} 73. Re6+
{[%clk 0:00:18.7]} 73... Re4 {[%clk 0:00:25.3]} 74. Rxe4+ {[%clk 0:00:18.5]}
74... Kxe4 {[%clk 0:00:26.1]} 75. Kg3 {[%clk 0:00:19.4]} 75... h4+ {[%clk
0:00:24.3]} 1/2-1/2

[Event "*** Titled Tuesday Blitz"]
[Site "Chess.com"]
[Date "2019.02.05"]
[Round "4"]
[White "Keaton87"]
[Black "BogdanDeac"]
[Result "1/2-1/2"]
[WhiteElo "2547"]
[BlackElo "2736"]
[TimeControl "180+2"]
[EndTime "13:52:57 PST"]
[Termination "Game drawn - insufficient material"]

1. d4 {[%clk 0:03:01.9]} 1... Nf6 {[%clk 0:02:59.8]} 2. Nc3 {[%clk 0:03:00.1]}
2... d5 {[%clk 0:03:00.1]} 3. Bf4 {[%clk 0:03:01]} 3... c5 {[%clk 0:03:00.1]} 4.
e3 {[%clk 0:02:57.5]} 4... a6 {[%clk 0:03:00.1]} 5. dxc5 {[%clk 0:02:47.5]} 5...
Nc6 {[%clk 0:03:00.3]} 6. Nf3 {[%clk 0:02:43.3]} 6... Bg4 {[%clk 0:03:00.8]} 7.
Be2 {[%clk 0:02:35.8]} 7... e6 {[%clk 0:02:58.5]} 8. Na4 {[%clk 0:02:22.2]} 8...
Bxc5 {[%clk 0:02:58]} 9. Nxc5 {[%clk 0:02:22.8]} 9... Qa5+ {[%clk 0:02:59.5]}
10. c3 {[%clk 0:02:23.2]} 10... Qxc5 {[%clk 0:03:00.9]} 11. O-O {[%clk
0:02:21.7]} 11... O-O {[%clk 0:03:01.6]} 12. h3 {[%clk 0:02:19]} 12... Bh5
{[%clk 0:03:01.3]} 13. Ne5 {[%clk 0:01:58]} 13... Bxe2 {[%clk 0:02:44.3]} 14.
Qxe2 {[%clk 0:01:59.9]} 14... Rfe8 {[%clk 0:02:41]} 15. Rfd1 {[%clk 0:01:45.8]}
15... Rac8 {[%clk 0:02:40.1]} 16. Nxc6 {[%clk 0:01:28.6]} 16... Rxc6 {[%clk
0:02:37.2]} 17. Be5 {[%clk 0:01:28.5]} 17... Nd7 {[%clk 0:02:35.3]} 18. Bg3
{[%clk 0:01:26.4]} 18... Qc4 {[%clk 0:02:34.3]} 19. Qf3 {[%clk 0:01:21]} 19...
Qb5 {[%clk 0:02:22.9]} 20. Rd2 {[%clk 0:01:20.5]} 20... Nc5 {[%clk 0:02:18.8]}
21. Qe2 {[%clk 0:01:14.1]} 21... Qb6 {[%clk 0:01:43.6]} 22. Be5 {[%clk
0:01:05.2]} 22... Ne4 {[%clk 0:01:42.7]} 23. Rdd1 {[%clk 0:01:05.6]} 23... f6
{[%clk 0:01:41.4]} 24. Bh2 {[%clk 0:00:54.4]} 24... Qb5 {[%clk 0:01:41.8]} 25.
Qxb5 {[%clk 0:00:54.3]} 25... axb5 {[%clk 0:01:42.1]} 26. Rd4 {[%clk 0:00:53.3]}
26... Ra8 {[%clk 0:01:42.9]} 27. a3 {[%clk 0:00:51.5]} 27... Ra4 {[%clk
0:01:42.7]} 28. Rb4 {[%clk 0:00:50.3]} 28... Rxb4 {[%clk 0:01:37.9]} 29. axb4
{[%clk 0:00:51.1]} 29... Ra6 {[%clk 0:01:38.2]} 30. Rb1 {[%clk 0:00:15.8]} 30...
Nd2 {[%clk 0:01:30.7]} 31. Rd1 {[%clk 0:00:16.2]} 31... Ra2 {[%clk 0:01:31.3]}
32. Bc7 {[%clk 0:00:09.9]} 32... Rxb2 {[%clk 0:01:31.4]} 33. f3 {[%clk
0:00:11.1]} 33... Ra2 {[%clk 0:01:22.7]} 34. Bf4 {[%clk 0:00:11.6]} 34... e5
{[%clk 0:01:23.1]} 35. Bg3 {[%clk 0:00:09.7]} 35... Nc4 {[%clk 0:01:16.1]} 36.
Bf2 {[%clk 0:00:08.1]} 36... Rd2 {[%clk 0:01:07.6]} 37. Ra1 {[%clk 0:00:08.7]}
37... Rc2 {[%clk 0:01:07.7]} 38. Ra7 {[%clk 0:00:09.4]} 38... Nd6 {[%clk
0:01:05.3]} 39. e4 {[%clk 0:00:08.2]} 39... dxe4 {[%clk 0:01:01.7]} 40. Bc5
{[%clk 0:00:09.3]} 40... Nc4 {[%clk 0:00:25.7]} 41. fxe4 {[%clk 0:00:08.7]}
41... Nd2 {[%clk 0:00:25.6]} 42. Rxb7 {[%clk 0:00:09.7]} 42... Nxe4 {[%clk
0:00:26.3]} 43. Rxb5 {[%clk 0:00:10.8]} 43... Rxc3 {[%clk 0:00:21.9]} 44. Ba7
{[%clk 0:00:10.1]} 44... Kf7 {[%clk 0:00:21.8]} 45. Rb7+ {[%clk 0:00:11]} 45...
Kg6 {[%clk 0:00:22.7]} 46. b5 {[%clk 0:00:12.6]} 46... Nd6 {[%clk 0:00:23.1]}
47. Rb8 {[%clk 0:00:12.4]} 47... Rc1+ {[%clk 0:00:23]} 48. Kf2 {[%clk 0:00:13]}
48... Rc2+ {[%clk 0:00:23.7]} 49. Kg3 {[%clk 0:00:07.2]} 49... Rb2 {[%clk
0:00:24.4]} 50. b6 {[%clk 0:00:06.2]} 50... Nc4 {[%clk 0:00:25.3]} 51. Kf3
{[%clk 0:00:05.2]} 51... Rb4 {[%clk 0:00:19.2]} 52. Ke2 {[%clk 0:00:04.6]} 52...
Rb3 {[%clk 0:00:19.8]} 53. Kd1 {[%clk 0:00:05]} 53... Rb2 {[%clk 0:00:15.1]} 54.
Kc1 {[%clk 0:00:06]} 54... Rb5 {[%clk 0:00:15.6]} 55. Kc2 {[%clk 0:00:06.6]}
55... e4 {[%clk 0:00:14.2]} 56. Kc3 {[%clk 0:00:07.8]} 56... Ne5 {[%clk
0:00:14.8]} 57. Kd4 {[%clk 0:00:07.2]} 57... Kf5 {[%clk 0:00:14.3]} 58. Rg8
{[%clk 0:00:05]} 58... Rb4+ {[%clk 0:00:11.8]} 59. Kc5 {[%clk 0:00:05.3]} 59...
Nd3+ {[%clk 0:00:12]} 60. Kc6 {[%clk 0:00:04.8]} 60... e3 {[%clk 0:00:12.9]} 61.
Re8 {[%clk 0:00:05.3]} 61... Ne5+ {[%clk 0:00:13.4]} 62. Rxe5+ {[%clk
0:00:04.1]} 62... Kxe5 {[%clk 0:00:13.2]} 63. b7 {[%clk 0:00:05.4]} 63... e2
{[%clk 0:00:13.4]} 64. b8=Q+ {[%clk 0:00:03.4]} 64... Rxb8 {[%clk 0:00:13.3]}
65. Bxb8+ {[%clk 0:00:05.3]} 65... Ke4 {[%clk 0:00:14.7]} 66. Bg3 {[%clk
0:00:05.7]} 66... Ke3 {[%clk 0:00:15.7]} 67. Kd5 {[%clk 0:00:06.6]} 67... Kd2
{[%clk 0:00:16.4]} 68. Ke6 {[%clk 0:00:06.7]} 68... e1=Q+ {[%clk 0:00:15.8]} 69.
Bxe1+ {[%clk 0:00:07.8]} 69... Kxe1 {[%clk 0:00:16.6]} 70. Kf7 {[%clk
0:00:09.4]} 70... Kf2 {[%clk 0:00:17.4]} 71. Kxg7 {[%clk 0:00:04.9]} 71... f5
{[%clk 0:00:15]} 72. g4 {[%clk 0:00:03.6]} 72... f4 {[%clk 0:00:15.6]} 73. g5
{[%clk 0:00:04.9]} 73... f3 {[%clk 0:00:14.4]} 74. Kxh7 {[%clk 0:00:06.5]} 74...
Ke3 {[%clk 0:00:14.8]} 75. g6 {[%clk 0:00:08.1]} 75... f2 {[%clk 0:00:15.1]} 76.
g7 {[%clk 0:00:10]} 76... f1=Q {[%clk 0:00:17]} 77. g8=Q {[%clk 0:00:11.3]}
77... Qxh3+ {[%clk 0:00:18.9]} 78. Kg7 {[%clk 0:00:12.5]} 78... Qg3+ {[%clk
0:00:19.3]} 79. Kh8 {[%clk 0:00:13.8]} 79... Qxg8+ {[%clk 0:00:21.2]} 80. Kxg8
{[%clk 0:00:15.7]} 1/2-1/2

[Event "*** Titled Tuesday Blitz"]
[Site "Chess.com"]
[Date "2019.02.05"]
[Round "4"]
[White "popov_m"]
[Black "Revnov"]
[Result "1/2-1/2"]
[WhiteElo "2619"]
[BlackElo "2779"]
[TimeControl "180+2"]
[EndTime "13:53:07 PST"]
[Termination "Game drawn by agreement"]

1. e4 {[%clk 0:03:00.5]} 1... c5 {[%clk 0:02:58.9]} 2. Nf3 {[%clk 0:02:59.4]}
2... d6 {[%clk 0:02:59.5]} 3. d4 {[%clk 0:03:00.3]} 3... cxd4 {[%clk 0:03:01.4]}
4. Nxd4 {[%clk 0:03:02.2]} 4... Nf6 {[%clk 0:03:02.8]} 5. Nc3 {[%clk 0:03:03.5]}
5... a6 {[%clk 0:03:04.3]} 6. Be3 {[%clk 0:03:05.1]} 6... e5 {[%clk 0:03:04.9]}
7. Nf3 {[%clk 0:03:06]} 7... h6 {[%clk 0:03:01.1]} 8. Bc4 {[%clk 0:03:05.9]}
8... Be7 {[%clk 0:03:02.2]} 9. O-O {[%clk 0:03:05.8]} 9... O-O {[%clk
0:03:03.3]} 10. a4 {[%clk 0:03:05]} 10... Be6 {[%clk 0:03:03.8]} 11. Qe2 {[%clk
0:03:04.9]} 11... Nbd7 {[%clk 0:03:04.4]} 12. a5 {[%clk 0:03:00.4]} 12... Rc8
{[%clk 0:03:03.1]} 13. Ba2 {[%clk 0:02:57.9]} 13... Rc6 {[%clk 0:03:01.1]} 14.
Rfd1 {[%clk 0:02:56.3]} 14... Qc7 {[%clk 0:03:00.1]} 15. Nd2 {[%clk 0:02:23.3]}
15... Rc8 {[%clk 0:02:55.3]} 16. Bxe6 {[%clk 0:02:18.4]} 16... fxe6 {[%clk
0:02:55.9]} 17. Nb3 {[%clk 0:02:19.9]} 17... Rxc3 {[%clk 0:02:36.1]} 18. bxc3
{[%clk 0:02:21.8]} 18... Nxe4 {[%clk 0:02:37.4]} 19. Qg4 {[%clk 0:02:20.7]}
19... Nxc3 {[%clk 0:02:25.5]} 20. Qxe6+ {[%clk 0:02:20.7]} 20... Kf8 {[%clk
0:02:26.7]} 21. Rd3 {[%clk 0:01:48.8]} 21... Nf6 {[%clk 0:02:07.9]} 22. Re1
{[%clk 0:01:35.9]} 22... Qd7 {[%clk 0:01:45]} 23. Qxd7 {[%clk 0:01:28.5]} 23...
Nxd7 {[%clk 0:01:46.9]} 24. Bd2 {[%clk 0:01:26.1]} 24... Nb5 {[%clk 0:01:43.6]}
25. c3 {[%clk 0:01:10.8]} 25... Na3 {[%clk 0:01:38.3]} 26. f4 {[%clk 0:01:01.4]}
26... Nc4 {[%clk 0:01:31.2]} 27. Bc1 {[%clk 0:01:02.2]} 27... Nf6 {[%clk
0:01:25.3]} 28. fxe5 {[%clk 0:01:00.3]} 28... dxe5 {[%clk 0:01:25]} 29. Nd2
{[%clk 0:00:54.9]} 29... Nxa5 {[%clk 0:01:10.3]} 30. Rxe5 {[%clk 0:00:50.7]}
30... Nc6 {[%clk 0:01:11.6]} 31. Re1 {[%clk 0:00:49.5]} 31... Kf7 {[%clk
0:00:56.3]} 32. Ne4 {[%clk 0:00:45.2]} 32... Nxe4 {[%clk 0:00:53.8]} 33. Rxe4
{[%clk 0:00:47.1]} 33... Bf6 {[%clk 0:00:45.1]} 34. Rd7+ {[%clk 0:00:45.3]}
34... Kg6 {[%clk 0:00:45.9]} 35. Rxb7 {[%clk 0:00:43.2]} 35... Na5 {[%clk
0:00:45.3]} 36. Ra7 {[%clk 0:00:37.9]} 36... Rxc3 {[%clk 0:00:39.9]} 37. Bb2
{[%clk 0:00:37.5]} 37... Rc6 {[%clk 0:00:32]} 38. Bxf6 {[%clk 0:00:38.8]} 38...
gxf6 {[%clk 0:00:33.6]} 39. Ra4 {[%clk 0:00:28.5]} 39... Nb3 {[%clk 0:00:27.9]}
40. R7xa6 {[%clk 0:00:26]} 40... Rc1+ {[%clk 0:00:27.7]} 41. Kf2 {[%clk
0:00:27.4]} 41... Nc5 {[%clk 0:00:26.2]} 42. Rc6 {[%clk 0:00:16.3]} 42... Nd3+
{[%clk 0:00:25.2]} 43. Ke3 {[%clk 0:00:16.7]} 43... Rxc6 {[%clk 0:00:26.4]} 44.
Kxd3 {[%clk 0:00:18]} 44... Kg5 {[%clk 0:00:26.3]} 45. Ke3 {[%clk 0:00:19.1]}
45... Rc3+ {[%clk 0:00:26]} 46. Kf2 {[%clk 0:00:20.3]} 46... h5 {[%clk
0:00:25.5]} 47. Ra5+ {[%clk 0:00:19.3]} 47... f5 {[%clk 0:00:25.9]} 48. Ra2
{[%clk 0:00:20.8]} 48... h4 {[%clk 0:00:26.1]} 49. h3 {[%clk 0:00:22.1]} 49...
Rc4 {[%clk 0:00:26.6]} 50. Rb2 {[%clk 0:00:23.3]} 50... Ra4 {[%clk 0:00:27.4]}
51. Rc2 {[%clk 0:00:24.5]} 51... Kf4 {[%clk 0:00:28.8]} 52. Rb2 {[%clk
0:00:25.5]} 52... Rd4 {[%clk 0:00:29.3]} 53. Rc2 {[%clk 0:00:26.3]} 53... Kg5
{[%clk 0:00:29.4]} 54. Rb2 {[%clk 0:00:27.3]} 54... Rd5 {[%clk 0:00:30.6]} 55.
Rc2 {[%clk 0:00:28.4]} 55... f4 {[%clk 0:00:31.8]} 56. Rb2 {[%clk 0:00:29.4]}
56... Kf5 {[%clk 0:00:33.2]} 57. Rc2 {[%clk 0:00:30.3]} 57... Ra5 {[%clk
0:00:33.7]} 58. Rb2 {[%clk 0:00:31.4]} 58... Ra4 {[%clk 0:00:34.8]} 59. Rc2
{[%clk 0:00:32.2]} 59... Ke4 {[%clk 0:00:35.3]} 60. Rb2 {[%clk 0:00:31.8]} 60...
Rd4 {[%clk 0:00:35]} 61. Re2+ {[%clk 0:00:31]} 61... Kf5 {[%clk 0:00:35.8]} 62.
Ra2 {[%clk 0:00:31.9]} 62... Rd3 {[%clk 0:00:36.6]} 63. Ra5+ {[%clk 0:00:32.2]}
63... Ke4 {[%clk 0:00:37.7]} 64. Ra4+ {[%clk 0:00:33.5]} 64... Kf5 {[%clk
0:00:38.5]} 65. Ra5+ {[%clk 0:00:34.7]} 65... Ke4 {[%clk 0:00:39.8]} 66. Ra4+
{[%clk 0:00:36.1]} 66... Kf5 {[%clk 0:00:40.6]} 67. Ra5+ {[%clk 0:00:37.4]}
67... Kf6 {[%clk 0:00:41.4]} 68. Rh5 {[%clk 0:00:33.2]} 68... Kg6 {[%clk
0:00:38]} 69. Rxh4 {[%clk 0:00:34.1]} 69... Kg5 {[%clk 0:00:38.3]} 70. Rg4+
{[%clk 0:00:33.8]} 70... Kf5 {[%clk 0:00:39.1]} 71. Rg8 {[%clk 0:00:35.5]} 71...
Rd2+ {[%clk 0:00:39.4]} 72. Kg1 {[%clk 0:00:32.6]} 72... Rd1+ {[%clk 0:00:40.3]}
73. Kh2 {[%clk 0:00:33.9]} 73... Rd2 {[%clk 0:00:41.6]} 74. h4 {[%clk
0:00:30.5]} 74... f3 {[%clk 0:00:35.5]} 75. Rf8+ {[%clk 0:00:26.6]} 75... Kg4
{[%clk 0:00:35.9]} 76. Rxf3 {[%clk 0:00:27.5]} 76... Kxh4 {[%clk 0:00:37]} 77.
Rf4+ {[%clk 0:00:29]} 77... Kg5 {[%clk 0:00:37.7]} 78. Ra4 {[%clk 0:00:30.7]}
78... Rd3 {[%clk 0:00:37.8]} 79. g3 {[%clk 0:00:32.1]} 79... Rd1 {[%clk
0:00:36.5]} 80. Kh3 {[%clk 0:00:32]} 80... Rh1+ {[%clk 0:00:37.4]} 81. Kg2
{[%clk 0:00:33.6]} 81... Rb1 {[%clk 0:00:38.9]} 82. Ra3 {[%clk 0:00:34.5]} 82...
Rc1 {[%clk 0:00:39.4]} 83. Kf3 {[%clk 0:00:35.5]} 83... Rf1+ {[%clk 0:00:39.9]}
84. Kg2 {[%clk 0:00:34.9]} 84... Rb1 {[%clk 0:00:40.4]} 85. Re3 {[%clk
0:00:33.9]} 85... Ra1 {[%clk 0:00:41]} 86. Re5+ {[%clk 0:00:31.6]} 86... Kg4
{[%clk 0:00:41]} 87. Re4+ {[%clk 0:00:32.9]} 87... Kg5 {[%clk 0:00:42]} 88. Rf4
{[%clk 0:00:33.8]} 88... Rb1 {[%clk 0:00:42]} 89. Kh3 {[%clk 0:00:34.3]} 89...
Rh1+ {[%clk 0:00:42.6]} 90. Kg2 {[%clk 0:00:35.4]} 90... Ra1 {[%clk 0:00:44.5]}
91. Rb4 {[%clk 0:00:36.5]} 91... Rc1 {[%clk 0:00:45.2]} 92. Rb2 {[%clk
0:00:29.6]} 1/2-1/2

[Event "*** Titled Tuesday Blitz"]
[Site "Chess.com"]
[Date "2019.02.05"]
[Round "4"]
[White "Vulcanochess"]
[Black "CalinGheorghiu"]
[Result "1/2-1/2"]
[WhiteElo "2369"]
[BlackElo "2243"]
[TimeControl "180+2"]
[EndTime "13:53:28 PST"]
[Termination "Game drawn by agreement"]

1. d4 {[%clk 0:03:01.9]} 1... Nf6 {[%clk 0:03:00.8]} 2. c4 {[%clk 0:03:02.8]}
2... e6 {[%clk 0:03:02.1]} 3. Nc3 {[%clk 0:03:03.6]} 3... Bb4 {[%clk 0:03:02.3]}
4. f3 {[%clk 0:03:04.8]} 4... d5 {[%clk 0:03:01.8]} 5. a3 {[%clk 0:03:05.3]}
5... Bxc3+ {[%clk 0:03:02.8]} 6. bxc3 {[%clk 0:03:05.3]} 6... c5 {[%clk
0:03:04]} 7. e3 {[%clk 0:03:04.3]} 7... Qc7 {[%clk 0:02:56.5]} 8. cxd5 {[%clk
0:03:03.6]} 8... exd5 {[%clk 0:02:56.7]} 9. Qd2 {[%clk 0:02:56.3]} 9... O-O
{[%clk 0:02:55.2]} 10. Bd3 {[%clk 0:02:56.7]} 10... b6 {[%clk 0:02:45.1]} 11.
Ne2 {[%clk 0:02:57.1]} 11... Ba6 {[%clk 0:02:46.5]} 12. O-O {[%clk 0:02:48.6]}
12... Bxd3 {[%clk 0:02:37.6]} 13. Qxd3 {[%clk 0:02:49.4]} 13... Re8 {[%clk
0:02:38.3]} 14. Ng3 {[%clk 0:02:42.6]} 14... Nc6 {[%clk 0:02:38.6]} 15. a4
{[%clk 0:02:32]} 15... Na5 {[%clk 0:02:32.1]} 16. e4 {[%clk 0:02:30.5]} 16...
cxd4 {[%clk 0:02:27.6]} 17. cxd4 {[%clk 0:02:30.7]} 17... dxe4 {[%clk
0:02:08.3]} 18. fxe4 {[%clk 0:02:31]} 18... Qc4 {[%clk 0:02:08.9]} 19. Qxc4
{[%clk 0:02:06.7]} 19... Nxc4 {[%clk 0:02:10.7]} 20. Re1 {[%clk 0:02:04.6]}
20... Rad8 {[%clk 0:02:05.9]} 21. e5 {[%clk 0:01:46.9]} 21... Rxd4 {[%clk
0:01:50.1]} 22. Nf5 {[%clk 0:01:31.7]} 22... Re4 {[%clk 0:01:50]} 23. Rxe4
{[%clk 0:01:19.4]} 23... Nxe4 {[%clk 0:01:50.3]} 24. Bf4 {[%clk 0:01:19.9]}
24... g6 {[%clk 0:01:37]} 25. Nd6 {[%clk 0:01:16.7]} 25... Ncxd6 {[%clk
0:01:32.8]} 26. exd6 {[%clk 0:01:17.1]} 26... g5 {[%clk 0:01:33.7]} 27. Be3
{[%clk 0:01:14.2]} 27... Nxd6 {[%clk 0:01:32.7]} 28. Bxg5 {[%clk 0:01:15]} 28...
Kg7 {[%clk 0:01:27.6]} 29. Rd1 {[%clk 0:01:05.2]} 29... Re6 {[%clk 0:01:20.7]}
30. Bf4 {[%clk 0:01:05]} 30... Nf5 {[%clk 0:01:20.1]} 31. Rd7 {[%clk 0:00:56.9]}
31... Re4 {[%clk 0:01:18.9]} 32. Bb8 {[%clk 0:00:55.9]} 32... Rxa4 {[%clk
0:01:10.5]} 33. Bxa7 {[%clk 0:00:56.3]} 33... b5 {[%clk 0:01:11.6]} 34. Rb7
{[%clk 0:00:53.3]} 34... Nd6 {[%clk 0:01:05.4]} 35. Rd7 {[%clk 0:00:53]} 35...
Ne4 {[%clk 0:01:05.5]} 36. h3 {[%clk 0:00:49.3]} 36... b4 {[%clk 0:01:03.2]} 37.
Bd4+ {[%clk 0:00:44.9]} 37... Kg6 {[%clk 0:01:03.7]} 38. Rb7 {[%clk 0:00:44.4]}
38... b3 {[%clk 0:00:59.7]} 39. Bb2 {[%clk 0:00:40.9]} 39... Nc5 {[%clk
0:00:56]} 40. Rb6+ {[%clk 0:00:34.5]} 40... Kf5 {[%clk 0:00:32.4]} 41. Rb5
{[%clk 0:00:34.9]} 41... Rc4 {[%clk 0:00:32.1]} 42. Ba3 {[%clk 0:00:35.6]} 42...
Ke4 {[%clk 0:00:19.2]} 43. Bxc5 {[%clk 0:00:33.8]} 43... b2 {[%clk 0:00:17.9]}
44. Rxb2 {[%clk 0:00:24.5]} 44... Rxc5 {[%clk 0:00:18.9]} 45. Rb4+ {[%clk
0:00:22.6]} 45... Kf5 {[%clk 0:00:17.6]} 46. Kh2 {[%clk 0:00:21.6]} 46... Rc3
{[%clk 0:00:17.5]} 47. Rh4 {[%clk 0:00:17.3]} 47... Kg6 {[%clk 0:00:17.8]} 48.
Rg4+ {[%clk 0:00:18.3]} 48... Kf6 {[%clk 0:00:17.8]} 49. h4 {[%clk 0:00:17.3]}
49... Rd3 {[%clk 0:00:16.2]} 50. g3 {[%clk 0:00:18]} 50... Rd5 {[%clk 0:00:14]}
51. Kh3 {[%clk 0:00:18.5]} 51... Rf5 {[%clk 0:00:14.3]} 52. Rg8 {[%clk
0:00:18.6]} 52... Rc5 {[%clk 0:00:13.5]} 53. Rh8 {[%clk 0:00:19.1]} 53... Kg7
{[%clk 0:00:14.2]} 54. Ra8 {[%clk 0:00:19.5]} 54... h5 {[%clk 0:00:14.6]} 55.
Rd8 {[%clk 0:00:18.5]} 55... Re5 {[%clk 0:00:15]} 56. Rd4 {[%clk 0:00:18.4]}
56... Rb5 {[%clk 0:00:15.2]} 57. Ra4 {[%clk 0:00:16.5]} 57... Rc5 {[%clk
0:00:16]} 58. Rf4 {[%clk 0:00:15.7]} 58... Rb5 {[%clk 0:00:16.3]} 59. Kg2 {[%clk
0:00:16.3]} 59... Rc5 {[%clk 0:00:16.2]} 60. Kf3 {[%clk 0:00:17.3]} 60... Rb5
{[%clk 0:00:17.1]} 61. Re4 {[%clk 0:00:18]} 61... Rf5+ {[%clk 0:00:16.7]} 62.
Ke3 {[%clk 0:00:17]} 62... Rb5 {[%clk 0:00:16.5]} 63. Kf4 {[%clk 0:00:17.2]}
63... Kg6 {[%clk 0:00:17.3]} 64. Rc4 {[%clk 0:00:16.7]} 64... Rf5+ {[%clk
0:00:16.7]} 65. Ke4 {[%clk 0:00:17.3]} 65... Rf1 {[%clk 0:00:17.8]} 66. Rc6+
{[%clk 0:00:17.2]} 66... f6 {[%clk 0:00:14.8]} 67. Ra6 {[%clk 0:00:16.8]} 67...
Rf2 {[%clk 0:00:15.3]} 68. Ke3 {[%clk 0:00:15.9]} 68... Rf1 {[%clk 0:00:16.2]}
69. Ra5 {[%clk 0:00:15.5]} 69... Rf5 {[%clk 0:00:12.6]} 70. Ra8 {[%clk
0:00:13.4]} 70... Rf1 {[%clk 0:00:12.3]} 71. Rg8+ {[%clk 0:00:13]} 71... Kf7
{[%clk 0:00:12.5]} 72. Rh8 {[%clk 0:00:11.4]} 72... Kg6 {[%clk 0:00:13]} 73.
Rg8+ {[%clk 0:00:12.3]} 73... Kf7 {[%clk 0:00:13.9]} 74. Ra8 {[%clk 0:00:12.6]}
74... Rb1 {[%clk 0:00:14.3]} 75. Kf3 {[%clk 0:00:12.9]} 75... Rb4 {[%clk
0:00:14.7]} 76. Ra5 {[%clk 0:00:12.9]} 76... Kg6 {[%clk 0:00:15.5]} 77. Rc5
{[%clk 0:00:13.6]} 77... Rd4 {[%clk 0:00:15.7]} 78. Rb5 {[%clk 0:00:12.5]} 78...
Rc4 {[%clk 0:00:16.6]} 1/2-1/2